[Event "AZE-ch Women 2019"]
[Site "Baku"]
[Date "2019.02.10"]
[Round "7.3"]
[White "Hojjatova, Aydan"]
[Black "Beydullayeva, Govhar"]
[Result "0-1"]
[ECO "B54"]
[WhiteElo "2303"]
[BlackElo "2239"]
[Annotator "NA"]
[PlyCount "126"]
[EventDate "2019.02.04"]
[EventType "swiss"]
[EventCountry "AZE"]
[SourceTitle "playchess.com"]
[Source "ChessBase"]
[SourceQuality "1"]
[TimeControl "40/5400+30:1800+30"]

1. e4 {[%emt 0:00:00]} c5 {[%emt 0:00:00]} 2. Nf3 {[%emt 0:00:00]} d6 {[%emt 0:00:00]} 3. d4 {[%emt 0:00:00]} cxd4 {[%emt 0:00:04]} 4. Nxd4 {[%emt 0:00:00]} Nf6 {[%emt 0:00:09]} 5. f3 {[%emt 0:00:11]} e5 {[%emt 0:01:27]} 6. Nb3 {[%emt 0:00:07]} d5 {[%emt 0:01:19]} 7. Bg5 {[%emt 0:00:22]} d4 {[%emt 0:01:47]} 8. c3 {[%emt 0:00:36]} Nc6 {[%emt 0:12:10]} 9. Bb5 {[%emt 0:00:39]} Qb6 {[%emt 0:08:12]} 10. Qd3 {[%emt 0:01:30]} Bd7 {[%emt 0:06:05]} 11. N1d2 {[%emt 0:10:09]} dxc3 {[%emt 0:12:01]} 12. bxc3 {[%emt 0:00:17]} a6 {[%emt 0:05:26]} 13. Bc4 {[%emt 0:02:26]} Rd8 {[%emt 0:00:57]} 14. Be3 {[%emt 0:03:32]} Qc7 {[%emt 0:00:10]} 15. a4 {[%emt 0:07:52]} Na5 {[%emt 0:03:41]} 16. Nxa5 {[%emt 0:26:28]} Qxa5 {[%emt 0:03:17]} 17. Qe2 {[%emt 0:01:33]} b5 {[%emt 0:03:03]} 18. Rb1 {[%emt 0:17:47]} bxc4 {[%emt 0:10:55]} 19. Bb6 {[%emt 0:00:03]} Qxa4 {[%emt 0:12:34]} 20. Bxd8 {[%emt 0:00:08]} Kxd8 {[%emt 0:00:00]} 21. Qxc4 {[%emt 0:01:01]} Qxc4 {[%emt 0:00:51]} 22. Nxc4 {[%emt 0:00:04]} Kc7 {[%emt 0:02:46]} 23. Nxe5 {[%emt 0:00:34]} Be6 {[%emt 0:01:37]} 24. Ra1 {[%emt 0:02:39]} Nd7 {[%emt 0:03:24]} 25. Nxd7 {[%emt 0:04:12]} Bxd7 {[%emt 0:00:24]} 26. Rxa6 {[%emt 0:00:04]} Bc5 {[%emt 0:00:16]} 27. Ra5 {[%emt 0:03:17]} Kb6 {[%emt 0:00:23]} 28. Ra1 {[%emt 0:02:02]} Bb5 {[%emt 0:00:42]} 29. Kd2 {[%emt 0:00:50]} Rd8+ {[%emt 0:02:30]} 30. Kc2 {[%emt 0:01:32]} Bd3+ {[%emt 0:00:17]} 31. Kb3 {[%emt 0:02:56]} Rb8 {[%emt 0:00:59]} 32. Ra4 {[%emt 0:09:20]} Kc6+ {[%emt 0:00:03]} 33. Ka2 {[%emt 0:00:05]} Kb5 {[%emt 0:02:46]} 34. Kb3 {[%emt 0:02:13]} Kc6+ {[%emt 0:00:06]} 35. Ka2 {[%emt 0:00:04]} Bc2 {[%emt 0:00:06]} 36. Rd4 {[%emt 0:00:58]} Bxd4 {[%emt 0:01:00]} 37. cxd4 {[%emt 0:00:01]} Kd6 {[%emt 0:00:52]} 38. Rc1 {[%emt 0:00:18]} Ba4 {[%emt 0:00:10]} 39. Rc5 {[%emt 0:00:36]} Bd7 {[%emt 0:02:47]} 40. Rd5+ {[%emt 0:00:00]} Ke7 {[%emt 0:00:00]} 41. Ra5 {[%emt 0:03:41]} Rb4 {[%emt 0:02:53]} 42. Re5+ {[%emt 0:06:51]} Kf6 {[%emt 0:02:24]} 43. Rd5 {[%emt 0:00:22]} Be6 {[%emt 0:01:38]} 44. Ka3 {[%emt 0:00:03]} Rb1 {[%emt 0:00:58]} 45. Rc5 {[%emt 0:06:21]} Ra1+ {[%emt 0:02:30]} 46. Kb4 {[%emt 0:00:04]} Ra2 {[%emt 0:00:03]} 47. g4 {[%emt 0:03:54]} Rxh2 {[%emt 0:01:09]} 48. g5+ {[%emt 0:01:42]} Ke7 {[%emt 0:00:52]} 49. f4 {[%emt 0:00:10]} Rh4 {[%emt 0:07:32]} 50. f5 {[%emt 0:00:20]} Rxe4 {[%emt 0:04:25]} 51. fxe6 {[%emt 0:00:04]} Rxd4+ {[%emt 0:00:07]} 52. Kc3 {[%emt 0:00:03]} Rd6 {[%emt 0:02:37]} 53. exf7 {[%emt 0:01:06]} Kxf7 {[%emt 0:00:02]} 54. Rf5+ {[%emt 0:00:51]} Kg6 {[%emt 0:00:05]} 55. Re5 {[%emt 0:00:03]} Rd1 {[%emt 0:00:23]} 56. Re7 {[%emt 0:00:51]} Rd5 {[%emt 0:00:07]} 57. Kc4 {[%emt 0:00:10]} Rxg5 {[%emt 0:00:12]} 58. Kd4 {[%emt 0:00:03]} Rf5 {[%emt 0:00:22]} 59. Ke4 {[%emt 0:00:07]} Rf6 {[%emt 0:00:08]} 60. Ra7 {[%emt 0:00:24]} h5 {[%emt 0:00:15]} 61. Rb7 {[%emt 0:00:28]} Kh6 {[%emt 0:00:45]} 62. Ke5 {[%emt 0:00:05]} Rf1 {[%emt 0:00:11]} 63. Rb8 {[%emt 0:00:06]} Kg5 {[%emt 0:00:31]} 0-1

[Event "AZE-ch Women 2019"]
[Site "Baku"]
[Date "2019.02.10"]
[Round "7.4"]
[White "Mamedjarova, Turkan"]
[Black "Allahverdiyeva, Ayan"]
[Result "1-0"]
[ECO "D00"]
[WhiteElo "2267"]
[BlackElo "2051"]
[Annotator "NA"]
[PlyCount "85"]
[EventDate "2019.02.04"]
[EventType "swiss"]
[EventCountry "AZE"]
[SourceTitle "playchess.com"]
[Source "ChessBase"]
[SourceQuality "1"]
[TimeControl "40/5400+30:1800+30"]

1. d4 {[%emt 0:00:00]} d5 {[%emt 0:00:46]} 2. Nc3 {[%emt 0:00:00]} e6 {[%emt 0:03:22]} 3. Nf3 {[%emt 0:00:03]} Nf6 {[%emt 0:05:17]} 4. Bg5 {[%emt 0:00:18]} Be7 {[%emt 0:00:02]} 5. Bxf6 {[%emt 0:00:52]} Bxf6 {[%emt 0:00:18]} 6. e3 {[%emt 0:01:07]} O-O {[%emt 0:01:26]} 7. Bd3 {[%emt 0:00:52]} c5 {[%emt 0:01:43]} 8. O-O {[%emt 0:01:26]} Nc6 {[%emt 0:05:39]} 9. Re1 {[%emt 0:01:45]} b6 {[%emt 0:01:00]} 10. Bf1 {[%emt 0:06:01]} Bb7 {[%emt 0:02:18]} 11. Qd2 {[%emt 0:02:44]} Qe7 {[%emt 0:04:27]} 12. Rad1 {[%emt 0:05:57]} cxd4 {[%emt 0:04:37]} 13. exd4 {[%emt 0:00:51]} Qb4 {[%emt 0:00:11]} 14. a3 {[%emt 0:04:39]} Qd6 {[%emt 0:03:27]} 15. Nb5 {[%emt 0:06:10]} Qb8 {[%emt 0:05:29]} 16. Qe3 {[%emt 0:03:03]} a6 {[%emt 0:00:36]} 17. Nc3 {[%emt 0:00:04]} Qc7 {[%emt 0:00:09]} 18. Bd3 {[%emt 0:05:50]} g6 {[%emt 0:00:53]} 19. h4 {[%emt 0:07:07]} Ne7 {[%emt 0:13:15]} 20. g4 {[%emt 0:06:05]} Nc6 {[%emt 0:12:21]} 21. h5 {[%emt 0:06:49]} Nxd4 {[%emt 0:14:57]} 22. Nxd4 {[%emt 0:00:26]} e5 {[%emt 0:00:05]} 23. Qg3 {[%emt 0:06:30]} Qc8 {[%emt 0:05:42]} 24. Nb3 {[%emt 0:01:54]} gxh5 {[%emt 0:03:56]} 25. Bf5 {[%emt 0:03:04]} Qc4 {[%emt 0:01:00]} 26. Qh3 {[%emt 0:07:34]} Kg7 {[%emt 0:02:12]} 27. Qxh5 {[%emt 0:01:23]} h6 {[%emt 0:00:29]} 28. Bd3 {[%emt 0:00:56]} Qc7 {[%emt 0:03:36]} 29. Bf5 {[%emt 0:05:34]} Rad8 {[%emt 0:01:14]} 30. Ne2 {[%emt 0:00:44]} Rfe8 {[%emt 0:01:09]} 31. Ng3 {[%emt 0:00:52]} e4 {[%emt 0:00:31]} 32. Nd4 {[%emt 0:03:02]} e3 {[%emt 0:01:41]} 33. Qh2 {[%emt 0:00:11]} exf2+ {[%emt 0:01:51]} 34. Qxf2 {[%emt 0:00:18]} Rxe1+ {[%emt 0:00:21]} 35. Rxe1 {[%emt 0:00:47]} Be5 {[%emt 0:00:10]} 36. Nh5+ {[%emt 0:00:17]} Kg8 {[%emt 0:00:01]} 37. c3 {[%emt 0:00:28]} Bd6 {[%emt 0:01:19]} 38. Bd3 {[%emt 0:01:27]} Bc8 {[%emt 0:00:17]} 39. Qf6 {[%emt 0:00:34]} Bf8 {[%emt 0:00:28]} 40. Nf5 {[%emt 0:00:00]} Bxf5 {[%emt 0:00:00]} 41. Qxf5 {[%emt 0:02:17]} Bc5+ {[%emt 0:02:43]} 42. Kg2 {[%emt 0:00:36]} Kf8 {[%emt 0:00:17]} 43. Qh7 {[%emt 0:00:22]} 1-0

[Event "AZE-ch Women 2019"]
[Site "Baku"]
[Date "2019.02.10"]
[Round "7.5"]
[White "Abdulla, Khayala"]
[Black "Soyunlu, Narmin"]
[Result "1/2-1/2"]
[ECO "C44"]
[WhiteElo "2243"]
[BlackElo "2029"]
[Annotator "NA"]
[PlyCount "156"]
[EventDate "2019.02.04"]
[EventType "swiss"]
[EventCountry "AZE"]
[SourceTitle "playchess.com"]
[Source "ChessBase"]
[SourceQuality "1"]
[TimeControl "40/5400+30:1800+30"]

1. e4 {[%emt 0:00:37]} e5 {[%emt 0:00:00]} 2. Nf3 {[%emt 0:00:29]} Nc6 {[%emt 0:00:00]} 3. c3 {[%emt 0:01:18]} Nf6 {[%emt 0:00:00]} 4. d4 {[%emt 0:00:16]} exd4 {[%emt 0:00:05]} 5. e5 {[%emt 0:00:52]} Nd5 {[%emt 0:00:11]} 6. cxd4 {[%emt 0:00:24]} Bb4+ {[%emt 0:00:07]} 7. Bd2 {[%emt 0:00:46]} Bxd2+ {[%emt 0:00:10]} 8. Nbxd2 {[%emt 0:01:41]} d6 {[%emt 0:00:19]} 9. Bb5 {[%emt 0:01:47]} Bd7 {[%emt 0:09:58]} 10. exd6 {[%emt 0:08:31]} O-O {[%emt 0:06:14]} 11. O-O {[%emt 0:01:09]} cxd6 {[%emt 0:00:20]} 12. Bd3 {[%emt 0:10:09]} Nf4 {[%emt 0:10:14]} 13. Bb1 {[%emt 0:01:33]} Bg4 {[%emt 0:13:08]} 14. Qb3 {[%emt 0:08:28]} Re8 {[%emt 0:17:13]} 15. Qxb7 {[%emt 0:13:31]} Na5 {[%emt 0:06:47]} 16. Qb4 {[%emt 0:10:34]} Rb8 {[%emt 0:10:16]} 17. Qa3 {[%emt 0:00:27]} Qc7 {[%emt 0:10:02]} 18. Kh1 {[%emt 0:04:39]} d5 {[%emt 0:03:57]} 19. h3 {[%emt 0:15:01]} Bxf3 {[%emt 0:01:25]} 20. Nxf3 {[%emt 0:01:09]} Nc4 {[%emt 0:00:38]} 21. Qc3 {[%emt 0:03:38]} Rxb2 {[%emt 0:01:40]} 22. Bc2 {[%emt 0:02:47]} Qa5 {[%emt 0:04:37]} 23. Qxa5 {[%emt 0:02:37]} Nxa5 {[%emt 0:00:02]} 24. Bd1 {[%emt 0:02:14]} g6 {[%emt 0:01:36]} 25. g3 {[%emt 0:00:31]} Nd3 {[%emt 0:01:01]} 26. Kg1 {[%emt 0:00:13]} Re4 {[%emt 0:00:34]} 27. a4 {[%emt 0:03:43]} Nc4 {[%emt 0:00:55]} 28. a5 {[%emt 0:00:44]} Re7 {[%emt 0:00:45]} 29. a6 {[%emt 0:00:33]} Nd6 {[%emt 0:00:37]} 30. Ra3 {[%emt 0:00:37]} Nb4 {[%emt 0:00:18]} 31. Ne5 {[%emt 0:01:29]} Nb5 {[%emt 0:00:16]} 32. Ra5 {[%emt 0:02:21]} Nxd4 {[%emt 0:00:20]} 33. Ng4 {[%emt 0:00:08]} Kg7 {[%emt 0:01:00]} 34. Ne3 {[%emt 0:00:05]} Rd7 {[%emt 0:00:33]} 35. Ba4 {[%emt 0:00:35]} Rd6 {[%emt 0:00:22]} 36. Rd1 {[%emt 0:00:50]} Ne2+ {[%emt 0:00:10]} 37. Kf1 {[%emt 0:00:10]} Nc3 {[%emt 0:01:08]} 38. Rd4 {[%emt 0:01:09]} Nxa6 {[%emt 0:01:28]} 39. Nc4 {[%emt 0:00:59]} Rb1+ {[%emt 0:00:02]} 40. Kg2 {[%emt 0:00:00]} Rf6 {[%emt 0:00:00]} 41. Ne3 {[%emt 0:07:29]} Rb2 {[%emt 0:04:51]} 42. Ng4 {[%emt 0:01:04]} Rd6 {[%emt 0:01:51]} 43. Bd1 {[%emt 0:03:12]} Nxd1 {[%emt 0:13:34]} 44. Rxd1 {[%emt 0:00:03]} d4 {[%emt 0:03:06]} 45. Ne5 {[%emt 0:01:52]} Re2 {[%emt 0:03:03]} 46. Kf1 {[%emt 0:02:38]} Rc2 {[%emt 0:02:40]} 47. Rda1 {[%emt 0:05:11]} Re6 {[%emt 0:02:27]} 48. Nf3 {[%emt 0:02:30]} Ree2 {[%emt 0:02:05]} 49. Nxd4 {[%emt 0:01:14]} Rxf2+ {[%emt 0:00:02]} 50. Ke1 {[%emt 0:00:16]} Rb2 {[%emt 0:00:05]} 51. Rb5 {[%emt 0:03:26]} Ra2 {[%emt 0:01:50]} 52. Rxa2 {[%emt 0:02:04]} Rxa2 {[%emt 0:00:03]} 53. Nc6 {[%emt 0:00:23]} Rc2 {[%emt 0:01:10]} 54. Nd4 {[%emt 0:01:39]} Rc4 {[%emt 0:00:10]} 55. Ra5 {[%emt 0:02:13]} Nc5 {[%emt 0:00:54]} 56. Nf3 {[%emt 0:00:40]} Ne4 {[%emt 0:00:50]} 57. g4 {[%emt 0:01:54]} Rc7 {[%emt 0:00:19]} 58. Ke2 {[%emt 0:00:53]} Nc5 {[%emt 0:00:43]} 59. Nd4 {[%emt 0:00:38]} a6 {[%emt 0:00:44]} 60. Kf3 {[%emt 0:00:10]} Kf6 {[%emt 0:00:15]} 61. h4 {[%emt 0:00:50]} Ke5 {[%emt 0:00:40]} 62. Nb3 {[%emt 0:00:51]} Kd5 {[%emt 0:00:18]} 63. Nxc5 {[%emt 0:00:11]} Rxc5 {[%emt 0:00:01]} 64. Rxa6 {[%emt 0:00:05]} Rc3+ {[%emt 0:00:16]} 65. Kf4 {[%emt 0:00:09]} Rc4+ {[%emt 0:00:32]} 66. Kf3 {[%emt 0:00:22]} Ke5 {[%emt 0:01:09]} 67. Ra5+ {[%emt 0:00:17]} Ke6 {[%emt 0:00:17]} 68. Ra6+ {[%emt 0:00:47]} Ke7 {[%emt 0:00:22]} 69. Ra7+ {[%emt 0:00:22]} Kf8 {[%emt 0:00:14]} 70. Ra5 {[%emt 0:00:47]} Rd4 {[%emt 0:00:06]} 71. Rb5 {[%emt 0:00:22]} Ke7 {[%emt 0:00:22]} 72. h5 {[%emt 0:00:17]} Kf6 {[%emt 0:01:27]} 73. hxg6 {[%emt 0:00:04]} hxg6 {[%emt 0:00:55]} 74. Ra5 {[%emt 0:00:29]} Rd3+ {[%emt 0:00:26]} 75. Kf2 {[%emt 0:00:25]} Ke6 {[%emt 0:00:20]} 76. Kg2 {[%emt 0:00:46]} Rd5 {[%emt 0:00:31]} 77. Ra3 {[%emt 0:00:09]} f6 {[%emt 0:00:36]} 78. Kf3 {[%emt 0:00:13]} Ke5 {Ke4+} 1/2-1/2

[Event "AZE-ch Women 2019"]
[Site "Baku"]
[Date "2019.02.10"]
[Round "7.6"]
[White "Gasimova, Samra"]
[Black "Hajiyeva, Laman"]
[Result "0-1"]
[ECO "D10"]
[WhiteElo "1693"]
[BlackElo "2040"]
[Annotator "NA"]
[PlyCount "98"]
[EventDate "2019.02.04"]
[EventType "swiss"]
[EventCountry "AZE"]
[SourceTitle "playchess.com"]
[Source "ChessBase"]
[SourceQuality "1"]
[TimeControl "40/5400+30:1800+30"]

1. d4 {[%emt 0:00:00]} d5 {[%emt 0:00:00]} 2. c4 {[%emt 0:00:00]} c6 {[%emt 0:00:00]} 3. Nc3 {[%emt 0:00:00]} Nf6 {[%emt 0:00:00]} 4. e3 {[%emt 0:00:09]} e6 {[%emt 0:00:00]} 5. Bd3 {[%emt 0:00:07]} dxc4 {[%emt 0:00:00]} 6. Bxc4 {[%emt 0:00:16]} Nbd7 {[%emt 0:00:00]} 7. Nge2 {[%emt 0:00:46]} Bd6 {[%emt 0:00:10]} 8. h3 {[%emt 0:01:29]} b5 {[%emt 0:00:59]} 9. Bd3 {[%emt 0:01:03]} Bb7 {[%emt 0:00:24]} 10. O-O {[%emt 0:01:48]} O-O {[%emt 0:00:07]} 11. e4 {[%emt 0:03:56]} e5 {[%emt 0:01:15]} 12. Be3 {[%emt 0:02:27]} Re8 {[%emt 0:11:29]} 13. Qc2 {[%emt 0:07:18]} Rc8 {[%emt 0:02:27]} 14. a3 {[%emt 0:25:16]} a6 {[%emt 0:12:19]} 15. Qd2 {[%emt 0:08:26]} exd4 {[%emt 0:07:14]} 16. Nxd4 {[%emt 0:02:48]} c5 {[%emt 0:06:03]} 17. Nf5 {[%emt 0:00:28]} Bf8 {[%emt 0:00:12]} 18. f3 {[%emt 0:04:00]} Ne5 {[%emt 0:13:26]} 19. Rfd1 {[%emt 0:04:32]} Qc7 {[%emt 0:03:07]} 20. Qf2 {[%emt 0:05:51]} Ng6 {[%emt 0:06:28]} 21. Rd2 {[%emt 0:04:30]} Rcd8 {[%emt 0:09:07]} 22. Rad1 {[%emt 0:00:37]} Bc8 {[%emt 0:00:33]} 23. Bg5 {[%emt 0:02:25]} c4 {[%emt 0:05:48]} 24. Bc2 {[%emt 0:00:41]} Bxf5 {[%emt 0:01:53]} 25. exf5 {[%emt 0:01:31]} Bc5 {[%emt 0:00:41]} 26. Rd4 {[%emt 0:02:10]} Rxd4 {[%emt 0:01:42]} 27. Rxd4 {[%emt 0:00:14]} Qb6 {[%emt 0:01:31]} 28. Ne2 {[%emt 0:03:37]} Rxe2 {[%emt 0:01:45]} 29. Qxe2 {[%emt 0:00:15]} Bxd4+ {[%emt 0:00:05]} 30. Kh1 {[%emt 0:02:47]} Nf8 {[%emt 0:00:18]} 31. b3 {[%emt 0:02:57]} Qc5 {[%emt 0:02:32]} 32. Qd2 {[%emt 0:02:58]} h6 {[%emt 0:02:39]} 33. Bh4 {[%emt 0:02:34]} Be3 {[%emt 0:02:44]} 34. Qc3 {[%emt 0:02:36]} Qd4 {[%emt 0:00:59]} 35. Qxd4 {[%emt 0:00:54]} Bxd4 {[%emt 0:00:06]} 36. bxc4 {[%emt 0:00:12]} bxc4 {[%emt 0:00:02]} 37. Be1 {[%emt 0:00:51]} N8d7 {[%emt 0:00:22]} 38. g4 {[%emt 0:00:23]} Ne5 {[%emt 0:00:13]} 39. Kg2 {[%emt 0:00:24]} Nd5 {[%emt 0:00:20]} 40. Kg3 {[%emt 0:00:00]} Nd3 {[%emt 0:00:00]} 41. Ba5 {[%emt 0:02:04]} Ne3 {[%emt 0:01:31]} 42. Bb1 {[%emt 0:00:10]} Be5+ {[%emt 0:01:24]} 43. f4 {[%emt 0:00:18]} Nxf4 {[%emt 0:00:24]} 44. Kf3 {[%emt 0:00:07]} Ned5 {[%emt 0:00:49]} 45. Ke4 {[%emt 0:00:14]} Bd6 {[%emt 0:02:03]} 46. Kd4 {[%emt 0:00:42]} Nc7 {[%emt 0:04:25]} 47. Kxc4 {[%emt 0:00:40]} Nb5 {[%emt 0:00:25]} 48. Kb3 {[%emt 0:01:21]} Nxa3 {[%emt 0:00:29]} 49. Be4 {[%emt 0:00:25]} Nb5 {[%emt 0:01:02]} 0-1

[Event "AZE-ch Women 2019"]
[Site "Baku"]
[Date "2019.02.10"]
[Round "7.7"]
[White "Jafarova, Aysel"]
[Black "Ismayil, Malak"]
[Result "0-1"]
[ECO "A14"]
[WhiteElo "1376"]
[BlackElo "1905"]
[Annotator "NA"]
[PlyCount "142"]
[EventDate "2019.02.04"]
[EventType "swiss"]
[EventCountry "AZE"]
[SourceTitle "playchess.com"]
[Source "ChessBase"]
[SourceQuality "1"]
[TimeControl "40/5400+30:1800+30"]

1. Nf3 {[%emt 0:00:00]} Nf6 {[%emt 0:00:00]} 2. g3 {[%emt 0:00:00]} e6 {[%emt 0:00:00]} 3. c4 {[%emt 0:00:00]} d5 {[%emt 0:01:25]} 4. Bg2 {[%emt 0:00:07]} Be7 {[%emt 0:01:37]} 5. O-O {[%emt 0:00:36]} O-O {[%emt 0:00:12]} 6. d4 {[%emt 0:01:35]} c5 {[%emt 0:03:42]} 7. dxc5 {[%emt 0:02:25]} Bxc5 {[%emt 0:00:54]} 8. cxd5 {[%emt 0:00:33]} Nxd5 {[%emt 0:02:07]} 9. Nbd2 {[%emt 0:03:33]} Nc6 {[%emt 0:02:47]} 10. Qc2 {[%emt 0:04:15]} Be7 {[%emt 0:01:42]} 11. a3 {[%emt 0:01:00]} Bd7 {[%emt 0:02:35]} 12. Ne4 {[%emt 0:06:21]} h6 {[%emt 0:00:57]} 13. Bd2 {[%emt 0:01:52]} Rc8 {[%emt 0:00:28]} 14. Qd3 {[%emt 0:03:09]} Nf6 {[%emt 0:22:24]} 15. Bc3 {[%emt 0:03:44]} Nxe4 {[%emt 0:02:40]} 16. Qxe4 {[%emt 0:00:15]} Bf6 {[%emt 0:00:23]} 17. Bxf6 {[%emt 0:01:10]} Qxf6 {[%emt 0:00:05]} 18. Rfd1 {[%emt 0:01:05]} Rfd8 {[%emt 0:00:41]} 19. Rd2 {[%emt 0:02:37]} Be8 {[%emt 0:03:07]} 20. Rad1 {[%emt 0:01:31]} Rxd2 {[%emt 0:00:29]} 21. Rxd2 {[%emt 0:00:14]} Rd8 {[%emt 0:01:41]} 22. Rxd8 {[%emt 0:01:07]} Qxd8 {[%emt 0:00:04]} 23. Qd3 {[%emt 0:01:33]} Qf6 {[%emt 0:06:04]} 24. Qb5 {[%emt 0:01:40]} Qe7 {[%emt 0:09:54]} 25. Qd3 {[%emt 0:00:40]} Qc5 {[%emt 0:03:54]} 26. Qc3 {[%emt 0:01:24]} Qd6 {[%emt 0:01:32]} 27. Qd3 {[%emt 0:00:16]} Qc7 {[%emt 0:00:58]} 28. Qc3 {[%emt 0:01:12]} e5 {[%emt 0:06:48]} 29. Nd2 {[%emt 0:04:37]} Qd6 {[%emt 0:02:23]} 30. Qd3 {[%emt 0:01:46]} Qc5 {[%emt 0:04:12]} 31. Qc4 {[%emt 0:02:13]} Qd6 {[%emt 0:01:54]} 32. Qd3 {[%emt 0:02:18]} Nd4 {[%emt 0:11:12]} 33. Ne4 {[%emt 0:03:49]} Qb6 {[%emt 0:02:33]} 34. e3 {[%emt 0:01:50]} Bb5 {[%emt 0:02:43]} 35. Qd2 {[%emt 0:00:54]} Ne6 {[%emt 0:00:52]} 36. Qd6 {[%emt 0:02:48]} Qd8 {[%emt 0:02:23]} 37. Qxd8+ {[%emt 0:00:15]} Nxd8 {[%emt 0:00:05]} 38. Nd6 {[%emt 0:00:24]} Bc6 {[%emt 0:00:13]} 39. Bxc6 {[%emt 0:00:27]} bxc6 {[%emt 0:00:00]} 40. Kf1 {[%emt 0:00:00]} Kf8 41. Ke2 {[%emt 0:01:08]} Ke7 {[%emt 0:00:37]} 42. Nc4 {[%emt 0:00:52]} e4 {[%emt 0:00:44]} 43. Kd2 {[%emt 0:00:25]} Ke6 {[%emt 0:00:20]} 44. Kc3 {[%emt 0:01:21]} Kd5 {[%emt 0:00:05]} 45. Nd2 {[%emt 0:00:34]} c5 {[%emt 0:01:13]} 46. Kb3 {[%emt 0:00:59]} Nc6 {[%emt 0:00:22]} 47. Nc4 {[%emt 0:00:22]} f5 {[%emt 0:01:08]} 48. Kc3 {[%emt 0:00:33]} Nd8 {[%emt 0:00:24]} 49. Nd2 {[%emt 0:01:24]} Nf7 {[%emt 0:00:18]} 50. f3 {[%emt 0:04:32]} exf3 {[%emt 0:00:53]} 51. Nxf3 {[%emt 0:00:04]} Ke4 {[%emt 0:00:22]} 52. Nh4 {[%emt 0:00:12]} Nd6 {[%emt 0:00:15]} 53. Ng2 {[%emt 0:00:34]} g5 {[%emt 0:00:30]} 54. b4 {[%emt 0:01:11]} cxb4+ {[%emt 0:14:39]} 55. Kxb4 {[%emt 0:02:02]} Kf3 {[%emt 0:00:05]} 56. Ne1+ {[%emt 0:00:08]} Kxe3 {[%emt 0:00:05]} 57. Kc5 {[%emt 0:00:29]} Ne4+ {[%emt 0:00:11]} 58. Kd5 {[%emt 0:00:35]} Nxg3 {[%emt 0:06:02]} 59. hxg3 {[%emt 0:00:27]} Kf2 {[%emt 0:00:06]} 60. Nd3+ {[%emt 0:04:23]} Kxg3 {[%emt 0:00:06]} 61. Kd4 {[%emt 0:05:40]} f4 {[%emt 0:00:15]} 62. Ke4 {[%emt 0:01:27]} f3 {[%emt 0:00:11]} 63. Ke3 {[%emt 0:00:30]} h5 {[%emt 0:00:23]} 64. Nf2 {[%emt 0:01:31]} g4 {[%emt 0:00:24]} 65. Ne4+ {[%emt 0:01:21]} Kg2 {[%emt 0:00:11]} 66. Nf6 {[%emt 0:02:37]} f2 {[%emt 0:00:15]} 67. Nxh5 {[%emt 0:00:09]} f1=Q {[%emt 0:00:11]} 68. Nf4+ {[%emt 0:00:09]} Kh2 {[%emt 0:00:10]} 69. Nd5 {[%emt 0:00:32]} g3 {[%emt 0:00:21]} 70. Nf4 {[%emt 0:00:18]} g2 {[%emt 0:00:11]} 71. Nxg2 {[%emt 0:00:05]} Kxg2 {[%emt 0:00:09]} 0-1

[Event "AZE-ch Women 2019"]
[Site "Baku"]
[Date "2019.02.10"]
[Round "7.8"]
[White "Hajiyeva, Altunay"]
[Black "Heydarova, Aytaj"]
[Result "1-0"]
[ECO "A10"]
[WhiteElo "1315"]
[BlackElo "1747"]
[Annotator "NA"]
[PlyCount "87"]
[EventDate "2019.02.04"]
[EventType "swiss"]
[EventCountry "AZE"]
[SourceTitle "playchess.com"]
[Source "ChessBase"]
[SourceQuality "1"]
[TimeControl "40/5400+30:1800+30"]

1. c4 {[%emt 0:02:19]} g6 {[%emt 0:03:11]} 2. Nc3 {[%emt 0:03:00]} Bg7 {[%emt 0:00:04]} 3. d3 {[%emt 0:01:51]} Nf6 {[%emt 0:00:06]} 4. e4 {[%emt 0:00:54]} d6 {[%emt 0:01:20]} 5. f4 {[%emt 0:03:31]} O-O {[%emt 0:02:31]} 6. Be2 {[%emt 0:02:12]} e5 {[%emt 0:01:11]} 7. Bf3 {[%emt 0:03:02]} Nbd7 {[%emt 0:02:30]} 8. Nge2 {[%emt 0:08:27]} Re8 {[%emt 0:02:03]} 9. g3 {[%emt 0:01:50]} c6 {[%emt 0:02:44]} 10. Be3 {[%emt 0:09:02]} a5 {[%emt 0:01:42]} 11. Qc2 {[%emt 0:05:04]} Rb8 {[%emt 0:03:35]} 12. Ba7 {[%emt 0:01:20]} Ra8 {[%emt 0:00:12]} 13. Be3 {[%emt 0:00:25]} Nf8 {[%emt 0:01:38]} 14. h3 {[%emt 0:08:42]} Bd7 {[%emt 0:02:09]} 15. g4 {[%emt 0:03:43]} exf4 {[%emt 0:08:13]} 16. Bxf4 {[%emt 0:03:38]} Ne6 {[%emt 0:07:50]} 17. Bg3 {[%emt 0:09:47]} Ng5 {[%emt 0:10:20]} 18. Bg2 {[%emt 0:01:08]} h5 {[%emt 0:01:00]} 19. Bf4 {[%emt 0:11:59]} Ne6 {[%emt 0:01:47]} 20. Bxd6 {[%emt 0:03:02]} hxg4 {[%emt 0:03:01]} 21. e5 {[%emt 0:00:24]} gxh3 {[%emt 0:01:39]} 22. Bxh3 {[%emt 0:01:12]} Nh5 {[%emt 0:00:59]} 23. O-O-O {[%emt 0:03:31]} Bxe5 {[%emt 0:07:33]} 24. Bxe5 {[%emt 0:02:50]} Qg5+ {[%emt 0:00:01]} 25. Qd2 {[%emt 0:04:03]} Qxe5 {[%emt 0:00:28]} 26. d4 {[%emt 0:00:39]} Qc7 {[%emt 0:02:19]} 27. Bg4 {[%emt 0:01:12]} Neg7 {[%emt 0:04:57]} 28. Bxd7 {[%emt 0:01:49]} Qxd7 {[%emt 0:01:19]} 29. Nf4 {[%emt 0:00:48]} Nxf4 {[%emt 0:15:06]} 30. Qxf4 {[%emt 0:00:09]} Qf5 {[%emt 0:00:23]} 31. Qh6 {[%emt 0:00:56]} Nh5 {[%emt 0:00:10]} 32. Rdf1 {[%emt 0:00:35]} Qd3 {[%emt 0:03:37]} 33. Rfg1 {[%emt 0:01:00]} Qxd4 {[%emt 0:00:37]} 34. Qxh5 {[%emt 0:02:10]} Re1+ {[%emt 0:05:19]} 35. Nd1 {[%emt 0:00:44]} Rxg1 {[%emt 0:04:15]} 36. Qh7+ {[%emt 0:00:08]} Kf8 {[%emt 0:00:12]} 37. Rxg1 {[%emt 0:00:11]} Rd8 {[%emt 0:01:09]} 38. Qh2 {[%emt 0:00:30]} Qxc4+ {[%emt 0:00:19]} 39. Nc3 {[%emt 0:00:31]} Qe6 {[%emt 0:00:50]} 40. Qh6+ {[%emt 0:00:00]} Ke8 {[%emt 0:00:00]} 41. Qh8+ {[%emt 0:02:37]} Ke7 {[%emt 0:01:35]} 42. Qh4+ {[%emt 0:00:30]} g5 {[%emt 0:01:05]} 43. Qxg5+ {[%emt 0:03:35]} Ke8 {[%emt 0:00:32]} 44. Rh1 {[%emt 0:02:20]} 1-0

[Event "AZE-ch Women 2019"]
[Site "Baku"]
[Date "2019.02.10"]
[Round "7.9"]
[White "Babayeva, Samira"]
[Black "Babazade, Zhala"]
[Result "1/2-1/2"]
[ECO "B06"]
[WhiteElo "1773"]
[BlackElo "1823"]
[Annotator "NA"]
[PlyCount "25"]
[EventDate "2019.02.04"]
[EventType "swiss"]
[EventCountry "AZE"]
[SourceTitle "playchess.com"]
[Source "ChessBase"]
[SourceQuality "1"]
[TimeControl "40/5400+30:1800+30"]

1. e4 {[%emt 0:09:14]} g6 {[%emt 0:00:00]} 2. d4 {[%emt 0:00:05]} Bg7 {[%emt 0:00:05]} 3. Nf3 {[%emt 0:00:13]} d6 {[%emt 0:00:37]} 4. Bc4 {[%emt 0:00:37]} h6 {[%emt 0:00:35]} 5. c3 {[%emt 0:00:07]} c6 {[%emt 0:00:05]} 6. Be3 {[%emt 0:01:13]} Nd7 {[%emt 0:00:30]} 7. a4 {[%emt 0:00:08]} Nb8 {[%emt 0:00:13]} 8. Nbd2 {[%emt 0:00:25]} Nd7 {[%emt 0:00:07]} 9. Nb1 {[%emt 0:01:01]} Nb8 {[%emt 0:00:06]} 10. Nbd2 {[%emt 0:00:06]} Nd7 {[%emt 0:00:05]} 11. Nb1 {[%emt 0:00:24]} Nb8 {[%emt 0:00:13]} 12. Nbd2 {[%emt 0:00:12]} Nd7 13. Ng1 1/2-1/2